[Event "Titled Tuesday Blitz October 11 Early 2022"]
[White "Siva Mahadevan"]
[Black "Sadubayev, Airat"]
[WhiteFideId "25043153"]
[BlackFideId "13713264"]
[WhiteElo "2249"]
[BlackElo "2215"]
[Result "1-0"]
[Round "08"]
[TimeControl "180+1"]
[Date "2022.10.11"]
[WhiteClock "0:00:08"]
[BlackClock "0:00:05"]

1. e4 {[%clk 0:02:59]}  c6 {[%clk 0:02:58]} 2. d4 {[%clk 0:02:59]}  d5 {[%clk 0:02:58]} 3. e5 {[%clk 0:03:00]}  Bf5 {[%clk 0:02:57]} 4. c4 {[%clk 0:03:00]}  e6 {[%clk 0:02:55]} 5. Nc3 {[%clk 0:03:01]}  Ne7 {[%clk 0:02:55]} 6. Nge2 {[%clk 0:03:00]}  Nd7 {[%clk 0:02:53]} 7. Ng3 {[%clk 0:03:00]}  Bg6 {[%clk 0:02:52]} 8. cxd5 {[%clk 0:02:52]}  Nxd5 {[%clk 0:02:50]} 9. Be2 {[%clk 0:02:52]}  Be7 {[%clk 0:02:47]} 10. O-O {[%clk 0:02:50]}  O-O {[%clk 0:02:46]} 11. f4 {[%clk 0:02:41]}  Nxc3 {[%clk 0:02:35]} 12. bxc3 {[%clk 0:02:40]}  c5 {[%clk 0:02:31]} 13. f5 {[%clk 0:02:34]}  exf5 {[%clk 0:02:29]} 14. Nxf5 {[%clk 0:02:35]}  cxd4 {[%clk 0:02:26]} 15. cxd4 {[%clk 0:02:36]}  Nb6 {[%clk 0:02:22]} 16. a4 {[%clk 0:02:35]}  Re8 {[%clk 0:02:12]} 17. a5 {[%clk 0:02:32]}  Nd5 {[%clk 0:02:11]} 18. Qb3 {[%clk 0:02:32]}  Rc8 {[%clk 0:02:00]} 19. Bd2 {[%clk 0:02:31]}  Bf8 {[%clk 0:01:47]} 20. Bc4 {[%clk 0:02:16]}  Nc7 {[%clk 0:01:26]} 21. Bc3 {[%clk 0:01:47]}  Ne6 {[%clk 0:01:20]} 22. d5 {[%clk 0:01:30]}  Nc5 {[%clk 0:01:12]} 23. Qc2 {[%clk 0:01:27]}  Qg5 {[%clk 0:01:03]} 24. Rae1 {[%clk 0:01:21]}  Kh8 {[%clk 0:00:49]} 25. d6 {[%clk 0:01:02]}  Nd7 {[%clk 0:00:47]} 26. Qd3 {[%clk 0:00:52]}  Rc5 {[%clk 0:00:37]} 27. Bd2 {[%clk 0:00:30]}  Qd8 {[%clk 0:00:34]} 28. e6 {[%clk 0:00:23]}  fxe6 {[%clk 0:00:28]} 29. Rxe6 {[%clk 0:00:24]}  Ne5 {[%clk 0:00:22]} 30. Qe3 {[%clk 0:00:19]}  Nxc4 {[%clk 0:00:19]} 31. Rxe8 {[%clk 0:00:19]}  Qxe8 {[%clk 0:00:18]} 32. Qxc5 {[%clk 0:00:19]}  Nxd2 {[%clk 0:00:18]} 33. Rd1 {[%clk 0:00:13]}  Ne4 {[%clk 0:00:16]} 34. Qd5 {[%clk 0:00:09]}  Bxf5 {[%clk 0:00:13]} 35. Qxf5 {[%clk 0:00:10]}  Nxd6 {[%clk 0:00:12]} 36. Qd5 {[%clk 0:00:09]}  Nf7 {[%clk 0:00:08]} 37. Qxb7 {[%clk 0:00:08]}  Bc5+ {[%clk 0:00:07]} 38. Kh1 {[%clk 0:00:08]}  Kg8 {[%clk 0:00:07]} 39. Qd5 {[%clk 0:00:08]}  Qe7 {[%clk 0:00:05]} 40. Qa8+ {[%clk 0:00:08]}  Qf8 {[%clk 0:00:06]} 41. Qd5 {[%clk 0:00:08]}  h6 {[%clk 0:00:06]} 42. Rf1 {[%clk 0:00:08]}  Be7 {[%clk 0:00:05]} 43. a6 {[%clk 0:00:08]}  Bf6 {[%clk 0:00:05]} 44. Qb7 {[%clk 0:00:08]}  Qe7 {[%clk 0:00:05]} 45. h3 {[%clk 0:00:08]}  Ng5 {[%clk 0:00:04]} 46. Rd1 {[%clk 0:00:07]}  Ne4 {[%clk 0:00:03]} 47. Qxe7 {[%clk 0:00:07]}  Bxe7 {[%clk 0:00:04]} 48. Rd7 {[%clk 0:00:07]}  Bc5 {[%clk 0:00:04]} 49. g4 {[%clk 0:00:08]}  Nf6 {[%clk 0:00:03]} 50. Rb7 {[%clk 0:00:08]}  Kf8 {[%clk 0:00:03]} 51. Kg2 {[%clk 0:00:09]}  Ne4 {[%clk 0:00:03]} 52. Kf3 {[%clk 0:00:09]}  Nd6 {[%clk 0:00:03]} 53. Rc7 {[%clk 0:00:09]}  Bb6 {[%clk 0:00:04]} 54. Rc6 {[%clk 0:00:10]}  Nb5 {[%clk 0:00:04]} 55. Ke4 {[%clk 0:00:10]}  Nc7 {[%clk 0:00:04]} 56. Kf5 {[%clk 0:00:07]}  Nxa6 {[%clk 0:00:04]} 57. Kg6 {[%clk 0:00:08]}  Nc7 {[%clk 0:00:05]} 58. h4 {[%clk 0:00:07]}  Ne8 {[%clk 0:00:05]} 59. Rc8 {[%clk 0:00:07]}  Bd4 {[%clk 0:00:05]} 60. Rd8 {[%clk 0:00:07]}  Bf6 {[%clk 0:00:03]} 61. Rd7 {[%clk 0:00:08]}  Bxh4 {[%clk 0:00:04]} 62. Rf7+ {[%clk 0:00:08]}  Kg8 {[%clk 0:00:04]} 63. Rxa7 {[%clk 0:00:08]}  Bf6 {[%clk 0:00:05]} 64. Rb7 {[%clk 0:00:08]}  Kf8 {[%clk 0:00:05]} 65. Rf7+ {[%clk 0:00:07]}  Kg8 {[%clk 0:00:05]} 66. Rb7 {[%clk 0:00:08]}  Nd6 {[%clk 0:00:05]} 67. Rb8+ {[%clk 0:00:08]} 1-0


[Site "https://www.chess.com"]

[Event "Titled Tuesday Blitz October 11 Early 2022"]
[White "Skibbe, Willi"]
[Black "Yaniuk, Volodymyr"]
[WhiteFideId "4682190"]
[BlackFideId "14133083"]
[WhiteElo "2330"]
[BlackElo "2141"]
[Result "1-0"]
[Round "08"]
[TimeControl "180+1"]
[Date "2022.10.12"]
[WhiteClock "0:01:30"]
[BlackClock "0:00:03"]

1. Nf3 {[%clk 0:03:00]}  d5 {[%clk 0:02:56]} 2. d4 {[%clk 0:03:00]}  Nf6 {[%clk 0:02:52]} 3. c4 {[%clk 0:02:59]}  e6 {[%clk 0:02:47]} 4. g3 {[%clk 0:02:59]}  dxc4 {[%clk 0:02:47]} 5. Bg2 {[%clk 0:02:58]}  Bd7 {[%clk 0:02:48]} 6. Ne5 {[%clk 0:02:56]}  Bc6 {[%clk 0:02:48]} 7. Nxc6 {[%clk 0:02:56]}  Nxc6 {[%clk 0:02:49]} 8. e3 {[%clk 0:02:53]}  Qd7 {[%clk 0:02:48]} 9. O-O {[%clk 0:02:53]}  Nd5 {[%clk 0:02:48]} 10. Qc2 {[%clk 0:02:51]}  O-O-O {[%clk 0:02:47]} 11. Qxc4 {[%clk 0:02:49]}  h5 {[%clk 0:02:47]} 12. Nc3 {[%clk 0:02:46]}  h4 {[%clk 0:02:46]} 13. Bd2 {[%clk 0:02:40]}  hxg3 {[%clk 0:02:46]} 14. hxg3 {[%clk 0:02:40]}  f5 {[%clk 0:02:46]} 15. Rfc1 {[%clk 0:02:37]}  g5 {[%clk 0:02:46]} 16. Nxd5 {[%clk 0:02:33]}  exd5 {[%clk 0:02:47]} 17. Qc2 {[%clk 0:02:33]}  f4 {[%clk 0:02:45]} 18. exf4 {[%clk 0:02:30]}  Nxd4 {[%clk 0:02:40]} 19. Qd3 {[%clk 0:02:30]}  Bg7 {[%clk 0:02:22]} 20. fxg5 {[%clk 0:02:17]}  Qg4 {[%clk 0:02:21]} 21. Bf4 {[%clk 0:02:10]}  c6 {[%clk 0:02:19]} 22. Re1 {[%clk 0:02:04]}  Rde8 {[%clk 0:02:05]} 23. Kf1 {[%clk 0:01:59]}  Ne6 {[%clk 0:01:43]} 24. Qf3 {[%clk 0:01:52]}  Qf5 {[%clk 0:01:38]} 25. Be5 {[%clk 0:01:45]}  Qxf3 {[%clk 0:01:35]} 26. Bxf3 {[%clk 0:01:46]}  Nxg5 {[%clk 0:00:40]} 27. Bxg7 {[%clk 0:01:32]}  Rxe1+ {[%clk 0:00:12]} 28. Rxe1 {[%clk 0:01:30]}  Nxf3 {[%clk 0:00:03]} 29. Bxh8 {[%clk 0:01:30]} 1-0


[Site "https://www.chess.com"]

[Event "Titled Tuesday Blitz October 11 Early 2022"]
[White "Smietanska, Wiktoria"]
[Black "Carbone, Diego"]
[WhiteFideId "21869359"]
[BlackFideId "3002179"]
[WhiteElo "1854"]
[BlackElo "2243"]
[Result "0-1"]
[Round "08"]
[TimeControl "180+1"]
[Date "2022.10.12"]
[WhiteClock "0:00:02"]
[BlackClock "0:00:09"]

1. c4 {[%clk 0:03:00]}  c5 {[%clk 0:02:59]} 2. Nf3 {[%clk 0:02:59]}  g6 {[%clk 0:02:58]} 3. Nc3 {[%clk 0:02:58]}  Bg7 {[%clk 0:02:58]} 4. e3 {[%clk 0:02:54]}  Nf6 {[%clk 0:02:56]} 5. d4 {[%clk 0:02:53]}  cxd4 {[%clk 0:02:57]} 6. exd4 {[%clk 0:02:54]}  d5 {[%clk 0:02:56]} 7. cxd5 {[%clk 0:02:54]}  Nxd5 {[%clk 0:02:57]} 8. Bc4 {[%clk 0:02:53]}  Nb6 {[%clk 0:02:51]} 9. Bb3 {[%clk 0:02:52]}  O-O {[%clk 0:02:51]} 10. O-O {[%clk 0:02:51]}  Nc6 {[%clk 0:02:50]} 11. Be3 {[%clk 0:02:47]}  Bg4 {[%clk 0:02:46]} 12. d5 {[%clk 0:02:43]}  Ne5 {[%clk 0:02:42]} 13. h3 {[%clk 0:02:26]}  Nxf3+ {[%clk 0:02:41]} 14. gxf3 {[%clk 0:02:25]}  Bxh3 {[%clk 0:02:41]} 15. Re1 {[%clk 0:02:25]}  Rc8 {[%clk 0:02:30]} 16. Qe2 {[%clk 0:02:16]}  Qd7 {[%clk 0:02:06]} 17. Rad1 {[%clk 0:02:06]}  Rfe8 {[%clk 0:02:02]} 18. Bxb6 {[%clk 0:02:02]}  Bxc3 {[%clk 0:02:01]} 19. bxc3 {[%clk 0:01:54]}  axb6 {[%clk 0:02:01]} 20. c4 {[%clk 0:01:52]}  Qf5 {[%clk 0:01:53]} 21. Qe3 {[%clk 0:01:26]}  Qh5 {[%clk 0:01:51]} 22. f4 {[%clk 0:01:14]}  Bf5 {[%clk 0:01:48]} 23. Qg3 {[%clk 0:00:37]}  Rcd8 {[%clk 0:01:21]} 24. Re5 {[%clk 0:00:27]}  e6 {[%clk 0:01:04]} 25. Rde1 {[%clk 0:00:23]}  Kg7 {[%clk 0:01:00]} 26. Bd1 {[%clk 0:00:21]}  Qh3 {[%clk 0:00:54]} 27. Bf3 {[%clk 0:00:17]}  Ra8 {[%clk 0:00:37]} 28. R5e2 {[%clk 0:00:11]}  Ra3 {[%clk 0:00:29]} 29. Qxh3 {[%clk 0:00:07]}  Bxh3 {[%clk 0:00:30]} 30. Bg2 {[%clk 0:00:06]}  Bf5 {[%clk 0:00:25]} 31. Rd2 {[%clk 0:00:05]}  Rd8 {[%clk 0:00:22]} 32. Rc1 {[%clk 0:00:04]}  Kf6 {[%clk 0:00:14]} 33. Kf1 {[%clk 0:00:03]}  h5 {[%clk 0:00:10]} 34. Ke2 {[%clk 0:00:03]}  h4 {[%clk 0:00:10]} 35. Rh1 {[%clk 0:00:02]}  h3 {[%clk 0:00:10]} 36. Bf3 {[%clk 0:00:01]}  exd5 {[%clk 0:00:09]} 37. cxd5 {[%clk 0:00:02]}  Re8+ {[%clk 0:00:09]} 38. Kf1 {[%clk 0:00:02]}  Rxf3 {[%clk 0:00:09]} 0-1


[Site "https://www.chess.com"]

[Event "Titled Tuesday Blitz October 11 Early 2022"]
[White "Sonnenschein, Philipp"]
[Black "Lakshmi C"]
[WhiteFideId "16250877"]
[BlackFideId "25035347"]
[WhiteElo "2225"]
[BlackElo "1865"]
[Result "0-1"]
[Round "08"]
[TimeControl "180+1"]
[Date "2022.10.12"]
[WhiteClock "0:00:17"]
[BlackClock "0:00:11"]

1. d4 {[%clk 0:03:00]}  Nf6 {[%clk 0:02:55]} 2. c4 {[%clk 0:03:00]}  e6 {[%clk 0:02:53]} 3. Nf3 {[%clk 0:03:00]}  b6 {[%clk 0:02:53]} 4. g3 {[%clk 0:02:59]}  Bb7 {[%clk 0:02:53]} 5. Bg2 {[%clk 0:03:00]}  Be7 {[%clk 0:02:51]} 6. O-O {[%clk 0:02:59]}  O-O {[%clk 0:02:49]} 7. Re1 {[%clk 0:02:59]}  Ne4 {[%clk 0:02:42]} 8. Nfd2 {[%clk 0:02:36]}  f5 {[%clk 0:02:40]} 9. Nxe4 {[%clk 0:02:31]}  Bxe4 {[%clk 0:02:21]} 10. f3 {[%clk 0:02:23]}  Bb7 {[%clk 0:02:17]} 11. e4 {[%clk 0:02:21]}  d5 {[%clk 0:02:17]} 12. cxd5 {[%clk 0:02:20]}  exd5 {[%clk 0:02:16]} 13. exf5 {[%clk 0:02:14]}  Rxf5 {[%clk 0:02:16]} 14. Qe2 {[%clk 0:01:58]}  Bd6 {[%clk 0:01:53]} 15. Qe6+ {[%clk 0:01:52]}  Rf7 {[%clk 0:01:53]} 16. Nc3 {[%clk 0:01:42]}  c6 {[%clk 0:01:49]} 17. h4 {[%clk 0:01:37]}  Bxg3 {[%clk 0:01:26]} 18. Bg5 {[%clk 0:01:31]}  Qd7 {[%clk 0:01:24]} 19. Qe8+ {[%clk 0:01:18]}  Rf8 {[%clk 0:01:10]} 20. Qxd7 {[%clk 0:01:07]}  Nxd7 {[%clk 0:01:10]} 21. Re7 {[%clk 0:01:06]}  Bc8 {[%clk 0:01:04]} 22. Bh3 {[%clk 0:00:45]}  Nf6 {[%clk 0:00:54]} 23. Kg2 {[%clk 0:00:41]}  Bd6 {[%clk 0:00:48]} 24. Re2 {[%clk 0:00:38]}  Bxh3+ {[%clk 0:00:36]} 25. Kxh3 {[%clk 0:00:38]}  Nh5 {[%clk 0:00:33]} 26. Kg4 {[%clk 0:00:32]}  Nf4 {[%clk 0:00:30]} 27. Bxf4 {[%clk 0:00:19]}  Rxf4+ {[%clk 0:00:29]} 28. Kh3 {[%clk 0:00:19]}  Rxf3+ {[%clk 0:00:29]} 29. Kg2 {[%clk 0:00:17]}  Rg3+ {[%clk 0:00:23]} 30. Kh1 {[%clk 0:00:18]}  Rh3+ {[%clk 0:00:20]} 31. Kg1 {[%clk 0:00:18]}  Rxh4 {[%clk 0:00:20]} 32. Rd1 {[%clk 0:00:15]}  Rg4+ {[%clk 0:00:19]} 33. Kh1 {[%clk 0:00:15]}  Rf8 {[%clk 0:00:18]} 34. Rde1 {[%clk 0:00:14]}  Rf6 {[%clk 0:00:13]} 35. Rg2 {[%clk 0:00:13]}  Rh6+ {[%clk 0:00:12]} 36. Kg1 {[%clk 0:00:13]}  Bh2+ {[%clk 0:00:10]} 37. Kf1 {[%clk 0:00:13]}  Rf6+ {[%clk 0:00:10]} 38. Rf2 {[%clk 0:00:13]}  Rxf2+ {[%clk 0:00:10]} 39. Kxf2 {[%clk 0:00:14]}  Bg3+ {[%clk 0:00:10]} 40. Kf3 {[%clk 0:00:14]}  Bxe1 {[%clk 0:00:11]} 41. Kxg4 {[%clk 0:00:15]}  Bxc3 {[%clk 0:00:12]} 42. bxc3 {[%clk 0:00:16]}  Kf7 {[%clk 0:00:12]} 43. Kf5 {[%clk 0:00:16]}  h5 {[%clk 0:00:11]} 44. Ke5 {[%clk 0:00:17]}  Ke7 {[%clk 0:00:11]} 45. Kf5 {[%clk 0:00:17]}  g6+ {[%clk 0:00:11]} 46. Kg5 {[%clk 0:00:17]}  Kd6 {[%clk 0:00:11]} 0-1


[Site "https://www.chess.com"]

[Event "Titled Tuesday Blitz October 11 Early 2022"]
[White "Sovetbekova, Nurai"]
[Black "Haukenfrers, Dale"]
[WhiteFideId "13801910"]
[BlackFideId "2603780"]
[WhiteElo "1925"]
[BlackElo "1975"]
[Result "1-0"]
[Round "08"]
[TimeControl "180+1"]
[Date "2022.10.12"]
[WhiteClock "0:00:15"]
[BlackClock "0:00:13"]

1. d4 {[%clk 0:03:00]}  c6 {[%clk 0:03:00]} 2. c4 {[%clk 0:03:00]}  d6 {[%clk 0:03:01]} 3. Nf3 {[%clk 0:02:59]}  g6 {[%clk 0:03:02]} 4. g3 {[%clk 0:02:59]}  Bg7 {[%clk 0:03:02]} 5. Bg2 {[%clk 0:03:00]}  f5 {[%clk 0:03:02]} 6. O-O {[%clk 0:02:58]}  Nf6 {[%clk 0:03:02]} 7. Nc3 {[%clk 0:02:59]}  O-O {[%clk 0:03:02]} 8. d5 {[%clk 0:02:52]}  e5 {[%clk 0:02:55]} 9. dxe6 {[%clk 0:02:45]}  Bxe6 {[%clk 0:02:55]} 10. Qd3 {[%clk 0:02:36]}  Na6 {[%clk 0:02:48]} 11. Nd4 {[%clk 0:02:33]}  Bf7 {[%clk 0:02:45]} 12. b3 {[%clk 0:02:30]}  Nc5 {[%clk 0:02:39]} 13. Qc2 {[%clk 0:02:25]}  Re8 {[%clk 0:02:36]} 14. e3 {[%clk 0:02:13]}  Qe7 {[%clk 0:02:34]} 15. Bb2 {[%clk 0:02:11]}  Rac8 {[%clk 0:02:32]} 16. Rad1 {[%clk 0:02:10]}  h6 {[%clk 0:02:28]} 17. Qd2 {[%clk 0:01:58]}  Kh7 {[%clk 0:02:27]} 18. Nde2 {[%clk 0:01:54]}  Rcd8 {[%clk 0:02:21]} 19. b4 {[%clk 0:01:45]}  Nce4 {[%clk 0:02:17]} 20. Nxe4 {[%clk 0:01:45]}  Nxe4 {[%clk 0:02:17]} 21. Qc2 {[%clk 0:01:37]}  Bxb2 {[%clk 0:02:12]} 22. Qxb2 {[%clk 0:01:38]}  Bxc4 {[%clk 0:02:11]} 23. Rd4 {[%clk 0:01:34]}  Bxe2 {[%clk 0:02:08]} 24. Qxe2 {[%clk 0:01:33]}  d5 {[%clk 0:02:08]} 25. Qc2 {[%clk 0:01:24]}  h5 {[%clk 0:02:07]} 26. h4 {[%clk 0:01:19]}  a6 {[%clk 0:02:02]} 27. Rfd1 {[%clk 0:01:19]}  Nf6 {[%clk 0:01:55]} 28. a4 {[%clk 0:01:15]}  Ng4 {[%clk 0:01:52]} 29. b5 {[%clk 0:01:12]}  axb5 {[%clk 0:01:51]} 30. axb5 {[%clk 0:01:12]}  Rc8 {[%clk 0:01:48]} 31. Qb3 {[%clk 0:01:05]}  Rcd8 {[%clk 0:01:37]} 32. bxc6 {[%clk 0:01:00]}  bxc6 {[%clk 0:01:37]} 33. Rb4 {[%clk 0:01:00]}  Rd7 {[%clk 0:01:32]} 34. Rb6 {[%clk 0:00:59]}  Rc8 {[%clk 0:01:14]} 35. Qc3 {[%clk 0:00:50]}  Qe6 {[%clk 0:00:57]} 36. Qc5 {[%clk 0:00:37]}  Qe5 {[%clk 0:00:51]} 37. Rxc6 {[%clk 0:00:30]}  Rxc6 {[%clk 0:00:50]} 38. Qxc6 {[%clk 0:00:31]}  Rd6 {[%clk 0:00:48]} 39. Qc7+ {[%clk 0:00:27]}  Kh6 {[%clk 0:00:46]} 40. Rb1 {[%clk 0:00:24]}  Re6 {[%clk 0:00:36]} 41. Qf7 {[%clk 0:00:18]}  Re7 {[%clk 0:00:19]} 42. Qf8+ {[%clk 0:00:18]}  Kh7 {[%clk 0:00:18]} 43. Rb8 {[%clk 0:00:16]}  Qe6 {[%clk 0:00:13]} 44. Qh8# {[%clk 0:00:15]} 1-0


[Site "https://www.chess.com"]

[Event "Titled Tuesday Blitz October 11 Early 2022"]
[White "Srihari L R"]
[Black "Kovalenko, Igor"]
[WhiteFideId "46617116"]
[BlackFideId "14117908"]
[WhiteElo "2336"]
[BlackElo "2574"]
[Result "0-1"]
[Round "08"]
[TimeControl "180+1"]
[Date "2022.10.11"]
[WhiteClock "0:00:11"]
[BlackClock "0:02:04"]

1. Nf3 {[%clk 0:02:55]}  d5 {[%clk 0:02:59]} 2. d4 {[%clk 0:02:54]}  Nf6 {[%clk 0:02:59]} 3. c4 {[%clk 0:02:53]}  e6 {[%clk 0:02:59]} 4. Nc3 {[%clk 0:02:53]}  c6 {[%clk 0:02:59]} 5. e3 {[%clk 0:02:51]}  Nbd7 {[%clk 0:02:59]} 6. Qc2 {[%clk 0:02:49]}  Bd6 {[%clk 0:02:59]} 7. b3 {[%clk 0:02:38]}  O-O {[%clk 0:02:58]} 8. Be2 {[%clk 0:02:38]}  Re8 {[%clk 0:02:56]} 9. O-O {[%clk 0:02:37]}  b6 {[%clk 0:02:56]} 10. Bb2 {[%clk 0:02:37]}  Bb7 {[%clk 0:02:56]} 11. Rfe1 {[%clk 0:02:30]}  Qe7 {[%clk 0:02:56]} 12. h3 {[%clk 0:02:28]}  Rad8 {[%clk 0:02:56]} 13. Rad1 {[%clk 0:02:27]}  e5 {[%clk 0:02:52]} 14. dxe5 {[%clk 0:02:25]}  Nxe5 {[%clk 0:02:53]} 15. Nd4 {[%clk 0:02:24]}  g6 {[%clk 0:02:51]} 16. cxd5 {[%clk 0:02:22]}  cxd5 {[%clk 0:02:42]} 17. Bb5 {[%clk 0:02:10]}  Rf8 {[%clk 0:02:41]} 18. Qe2 {[%clk 0:02:05]}  Rc8 {[%clk 0:02:35]} 19. Rc1 {[%clk 0:02:05]}  h5 {[%clk 0:02:32]} 20. Rc2 {[%clk 0:02:03]}  Bb8 {[%clk 0:02:29]} 21. Rec1 {[%clk 0:01:57]}  Qd6 {[%clk 0:02:28]} 22. f4 {[%clk 0:01:38]}  Ned7 {[%clk 0:02:28]} 23. Ba6 {[%clk 0:01:35]}  Bxa6 {[%clk 0:02:27]} 24. Qxa6 {[%clk 0:01:35]}  Qe7 {[%clk 0:02:26]} 25. Nxd5 {[%clk 0:01:11]}  Nxd5 {[%clk 0:02:26]} 26. Rxc8 {[%clk 0:01:10]}  Qxe3+ {[%clk 0:02:26]} 27. Kh1 {[%clk 0:01:10]}  Nxf4 {[%clk 0:02:15]} 28. Rxf8+ {[%clk 0:00:37]}  Nxf8 {[%clk 0:02:16]} 29. Nc2 {[%clk 0:00:15]}  Qg3 {[%clk 0:02:08]} 30. Qf1 {[%clk 0:00:11]}  Ne2 {[%clk 0:02:04]} 0-1


[Site "https://www.chess.com"]

[Event "Titled Tuesday Blitz October 11 Early 2022"]
[White "Subelj, Jan"]
[Black "Villamayor, Buenaventura"]
[WhiteFideId "14618583"]
[BlackFideId "5200393"]
[WhiteElo "2394"]
[BlackElo "2301"]
[Result "1-0"]
[Round "08"]
[TimeControl "180+1"]
[Date "2022.10.12"]
[WhiteClock "0:01:05"]
[BlackClock "0:00:55"]

1. Nf3 {[%clk 0:03:00]}  Nf6 {[%clk 0:02:59]} 2. d4 {[%clk 0:02:57]}  e6 {[%clk 0:02:58]} 3. Bf4 {[%clk 0:02:50]}  c5 {[%clk 0:02:57]} 4. e3 {[%clk 0:02:46]}  Nc6 {[%clk 0:02:56]} 5. c3 {[%clk 0:02:45]}  d5 {[%clk 0:02:55]} 6. Nbd2 {[%clk 0:02:44]}  Bd6 {[%clk 0:02:53]} 7. Bg3 {[%clk 0:02:40]}  O-O {[%clk 0:02:52]} 8. Bd3 {[%clk 0:02:38]}  b6 {[%clk 0:02:53]} 9. Ne5 {[%clk 0:02:33]}  Ne7 {[%clk 0:02:50]} 10. f4 {[%clk 0:02:23]}  Bb7 {[%clk 0:02:50]} 11. Bf2 {[%clk 0:02:20]}  Ne4 {[%clk 0:02:48]} 12. Qf3 {[%clk 0:02:10]}  f6 {[%clk 0:02:27]} 13. Ng4 {[%clk 0:02:01]}  h5 {[%clk 0:02:25]} 14. Nh6+ {[%clk 0:01:57]}  gxh6 {[%clk 0:02:22]} 15. Qxh5 {[%clk 0:01:55]}  Nf5 {[%clk 0:02:07]} 16. g4 {[%clk 0:01:52]}  Ng7 {[%clk 0:02:07]} 17. Qxh6 {[%clk 0:01:51]}  Qe7 {[%clk 0:01:54]} 18. h4 {[%clk 0:01:44]}  Ne8 {[%clk 0:01:37]} 19. Nxe4 {[%clk 0:01:34]}  dxe4 {[%clk 0:01:37]} 20. Bc4 {[%clk 0:01:35]}  Bd5 {[%clk 0:01:35]} 21. Bxd5 {[%clk 0:01:32]}  exd5 {[%clk 0:01:36]} 22. O-O-O {[%clk 0:01:32]}  Qg7 {[%clk 0:01:36]} 23. Qh5 {[%clk 0:01:32]}  cxd4 {[%clk 0:01:33]} 24. Qxd5+ {[%clk 0:01:30]}  Qf7 {[%clk 0:01:33]} 25. Qxa8 {[%clk 0:01:29]}  dxc3 {[%clk 0:01:15]} 26. Qd5 {[%clk 0:01:27]}  cxb2+ {[%clk 0:01:03]} 27. Kxb2 {[%clk 0:01:26]}  Bb4 {[%clk 0:00:58]} 28. Qxf7+ {[%clk 0:01:19]}  Rxf7 {[%clk 0:00:59]} 29. Rd8 {[%clk 0:01:18]}  Kf8 {[%clk 0:00:59]} 30. h5 {[%clk 0:01:07]}  Rc7 {[%clk 0:00:57]} 31. h6 {[%clk 0:01:05]}  Ke7 {[%clk 0:00:57]} 32. Rxe8+ {[%clk 0:01:04]}  Kxe8 {[%clk 0:00:55]} 33. h7 {[%clk 0:01:05]} 1-0


[Site "https://www.chess.com"]

[Event "Titled Tuesday Blitz October 11 Early 2022"]
[White "Tarasova, Viktoriya"]
[Black "Dushyant Sharma"]
[WhiteFideId "4175840"]
[BlackFideId "25065130"]
[WhiteElo "2182"]
[BlackElo "2270"]
[Result "1-0"]
[Round "08"]
[TimeControl "180+1"]
[Date "2022.10.12"]
[WhiteClock "0:00:20"]
[BlackClock "0:00:04"]

1. d4 {[%clk 0:03:00]}  d5 {[%clk 0:03:00]} 2. c4 {[%clk 0:03:00]}  e6 {[%clk 0:03:00]} 3. Nc3 {[%clk 0:03:00]}  c6 {[%clk 0:03:00]} 4. Nf3 {[%clk 0:02:59]}  f5 {[%clk 0:02:59]} 5. e3 {[%clk 0:02:59]}  Nf6 {[%clk 0:03:00]} 6. Bd3 {[%clk 0:02:59]}  Bd6 {[%clk 0:03:00]} 7. O-O {[%clk 0:03:00]}  O-O {[%clk 0:03:01]} 8. b3 {[%clk 0:02:58]}  Nbd7 {[%clk 0:03:01]} 9. Bb2 {[%clk 0:02:58]}  b6 {[%clk 0:03:00]} 10. Ne2 {[%clk 0:02:56]}  Bb7 {[%clk 0:03:00]} 11. Ne5 {[%clk 0:02:57]}  Ne4 {[%clk 0:02:59]} 12. f3 {[%clk 0:02:57]}  Nef6 {[%clk 0:02:59]} 13. Qc2 {[%clk 0:02:56]}  Rc8 {[%clk 0:02:58]} 14. Nf4 {[%clk 0:02:55]}  Qe7 {[%clk 0:02:57]} 15. cxd5 {[%clk 0:02:41]}  Nxd5 {[%clk 0:02:52]} 16. Nxd5 {[%clk 0:02:37]}  exd5 {[%clk 0:02:53]} 17. f4 {[%clk 0:02:35]}  g6 {[%clk 0:02:49]} 18. Qe2 {[%clk 0:02:32]}  c5 {[%clk 0:02:48]} 19. Rac1 {[%clk 0:02:28]}  Nf6 {[%clk 0:02:47]} 20. Rc2 {[%clk 0:02:23]}  Bxe5 {[%clk 0:02:39]} 21. fxe5 {[%clk 0:02:11]}  Ne4 {[%clk 0:02:39]} 22. Bxe4 {[%clk 0:02:07]}  fxe4 {[%clk 0:02:36]} 23. Rxf8+ {[%clk 0:02:05]}  Rxf8 {[%clk 0:02:35]} 24. Ba3 {[%clk 0:01:28]}  Qg5 {[%clk 0:02:27]} 25. dxc5 {[%clk 0:01:10]}  Ba6 {[%clk 0:02:25]} 26. h4 {[%clk 0:00:50]}  Bxe2 {[%clk 0:00:36]} 27. hxg5 {[%clk 0:00:49]}  Rf1+ {[%clk 0:00:29]} 28. Kh2 {[%clk 0:00:48]}  Bd3 {[%clk 0:00:30]} 29. c6 {[%clk 0:00:31]}  Bxc2 {[%clk 0:00:07]} 30. c7 {[%clk 0:00:31]}  Bd3 {[%clk 0:00:07]} 31. c8=Q+ {[%clk 0:00:30]}  Kg7 {[%clk 0:00:07]} 32. e6 {[%clk 0:00:24]}  d4 {[%clk 0:00:04]} 33. Bb2 {[%clk 0:00:20]}  h6 {[%clk 0:00:03]} 34. Bxd4+ {[%clk 0:00:20]}  Rf6 {[%clk 0:00:04]} 1-0


[Site "https://www.chess.com"]